fUST/lending_fUST_20250605
["ID","MTS","AMOUNT","RATE_DAILY","PERIOD"]
[364361069,1749081040086,-400.0,0.00017989,2]
[364361070,1749081040096,-400.0,0.00017989,2]
[364361071,1749081040106,-440.0,0.00017989,2]
[364361072,1749081040115,-2614.29,0.00017989,2]
[364361073,1749081040125,-440.0,0.0001799,2]
[364361074,1749081040134,-467.34028706,0.0001799,2]
[364361075,1749081040144,-540.0,0.0001799,2]
[364361076,1749081040153,-400.0,0.0001799,2]
[364361077,1749081040163,-440.0,0.0001799,2]
[364361078,1749081040172,-440.0,0.0001799,2]
[364361079,1749081040181,-440.0,0.0001799,2]
[364361080,1749081040191,-579.14,0.0001799,2]
[364361081,1749081040201,-701.71,0.0001799,2]
[364361082,1749081040211,-640.15,0.0001799,2]
[364361083,1749081040220,-4472.77,0.0001799,2]
[364361084,1749081040230,-436.56667375,0.0001799,2]
[364361091,1749081040361,-481.56332625,0.0001799,2]
[364361093,1749081040371,-440.0,0.0001799,2]
[364361095,1749081040380,-393.3646321,0.0001799,2]
[364361097,1749081040390,-440.0,0.0001799,2]
[364361099,1749081040399,-1332.82,0.0001799,2]
[364361101,1749081040411,-199.99,0.0001799,2]
[364361103,1749081040420,-570.78,0.0001799,2]
[364361105,1749081040430,-440.0,0.0001799,2]
[364361107,1749081040439,-440.0,0.0001799,2]
[364361109,1749081040448,-440.0,0.0001799,2]
[364361111,1749081040458,-440.0,0.0001799,2]
[364361113,1749081040467,-1210.67,0.0001799,2]
[364361115,1749081040476,-440.0,0.0001799,2]
[364361118,1749081040486,-440.0,0.0001799,2]
[364361120,1749081040496,-440.0,0.00017991,2]
[364361123,1749081040505,-440.0,0.00017991,2]
[364361126,1749081040514,-440.0,0.00017991,2]
[364361129,1749081040523,-440.0,0.00017991,2]
[364361131,1749081040532,-440.0,0.00017991,2]
[364361133,1749081040542,-400.0,0.00017991,2]
[364361135,1749081040551,-440.0,0.00017991,2]
[364361137,1749081040561,-440.0,0.00017991,2]
[364361139,1749081040570,-440.0,0.00017991,2]
[364361142,1749081040580,-440.0,0.00017991,2]
[364361144,1749081040589,-500.0,0.00017991,2]
[364361146,1749081040598,-440.0,0.00017991,2]
[364361149,1749081040607,-440.0,0.00017991,2]
[364361152,1749081040616,-440.0,0.00017991,2]
[364361155,1749081040626,-440.0,0.00017991,2]
[364361158,1749081040635,-440.0,0.00017991,2]
[364361162,1749081040645,-400.0,0.00017991,2]
[364361165,1749081040654,-440.0,0.00017991,2]
[364361168,1749081040664,-232.88115435,0.00017991,2]
[364361170,1749081040673,-440.0,0.00017991,2]
[364361174,1749081040683,-390.0,0.00017991,2]
[364361177,1749081040692,-390.0,0.00017991,2]
[364361179,1749081040701,-440.0,0.00017991,2]
[364361181,1749081040711,-440.0,0.00017991,2]
[364361185,1749081040720,-440.0,0.00017991,2]
[364361188,1749081040729,-390.0,0.00017991,2]
[364361191,1749081040739,-390.0,0.00017991,2]
[364361194,1749081040749,-485.37,0.00017991,2]
[364361197,1749081040758,-410.0,0.00017991,2]
[364361200,1749081040767,-440.0,0.00017991,2]
[364361203,1749081040776,-440.0,0.00017991,2]
[364361205,1749081040785,-440.0,0.00017991,2]
[364361208,1749081040794,-440.0,0.00017991,2]
[364361211,1749081040803,-440.0,0.00017991,2]
[364361214,1749081040812,-440.0,0.00017991,2]
[364361217,1749081040821,-440.0,0.00017991,2]
[364361220,1749081040830,-440.0,0.00017991,2]
[364361223,1749081040840,-440.0,0.00018263,2]
[364361225,1749081040849,-440.0,0.00018263,2]
[364361228,1749081040858,-440.0,0.00018263,2]
[364361231,1749081040867,-440.0,0.00018263,2]
[364361234,1749081040877,-440.0,0.00018263,2]
[364361237,1749081040886,-440.0,0.00018263,2]
[364361240,1749081040896,-440.0,0.00018263,2]
[364361243,1749081040906,-380.0,0.00018263,2]
[364361246,1749081040916,-440.0,0.00018263,2]
[364361249,1749081040927,-458.2,0.00018263,2]
[364361252,1749081040936,-440.0,0.00018263,2]
[364361255,1749081040947,-440.0,0.00018263,2]
[364361258,1749081040957,-282.81,0.00018263,2]
[364361261,1749081040966,-440.0,0.00018263,2]
[364361264,1749081040975,-440.0,0.00018263,2]
[364361267,1749081040985,-1464.11,0.00018263,2]
[364361270,1749081040994,-2560.82,0.00018263,2]
[364361273,1749081041005,-2762.2,0.00018263,2]
[364361276,1749081041014,-440.0,0.00018263,2]
[364361279,1749081041025,-704.83,0.00018263,2]
[364361282,1749081041034,-440.0,0.00018263,2]
[364361285,1749081041043,-1529.84,0.00018263,2]
[364361288,1749081041053,-440.0,0.00018263,2]
[364361291,1749081041062,-440.0,0.00018263,2]
[364361294,1749081041072,-440.0,0.00018263,2]
[364361297,1749081041083,-440.0,0.00018263,2]
[364361300,1749081041092,-440.0,0.00018263,2]
[364361303,1749081041102,-440.0,0.00018263,2]
[364361306,1749081041111,-440.0,0.00018263,2]
[364361308,1749081041121,-440.0,0.00018263,2]
[364361310,1749081041130,-440.0,0.00018263,2]
[364361313,1749081041139,-440.0,0.00018263,2]
[364361316,1749081041149,-440.0,0.00018263,2]
[364361319,1749081041159,-1553.6,0.00018263,2]
[364361322,1749081041169,-440.0,0.00018263,2]
[364361325,1749081041178,-440.0,0.00018263,2]
[364361328,1749081041188,-440.0,0.00018263,2]
[364361331,1749081041197,-575.03,0.00018263,2]
[364361334,1749081041208,-440.0,0.00018263,2]
[364361337,1749081041217,-440.0,0.00018263,2]
[364361340,1749081041227,-440.0,0.00018263,2]
[364361342,1749081041236,-2614.29,0.00018263,2]
[364361345,1749081041246,-440.0,0.00018264,2]
[364361348,1749081041255,-440.0,0.00018264,2]
[364361351,1749081041264,-578.87271069,0.00018264,2]
[364361354,1749081041274,-440.0,0.00018264,2]
[364361357,1749081041283,-579.14,0.00018264,2]
[364361360,1749081041293,-640.15,0.00018264,2]
[364361363,1749081041302,-4472.77,0.00018264,2]
[364361366,1749081041312,-918.13,0.00018264,2]
[364361369,1749081041326,-440.0,0.00018264,2]
[364361371,1749081041335,-440.0,0.00018264,2]
[364361374,1749081041344,-1332.82,0.00018264,2]
[364361377,1749081041355,-570.78,0.00018264,2]
[364361380,1749081041364,-440.0,0.00018264,2]
[364361383,1749081041373,-459.89000075,0.00018264,2]
[364361386,1749081041384,-440.0,0.00018264,2]
[364361388,1749081041394,-440.0,0.00018264,2]
[364361390,1749081041404,-1210.67,0.00018264,2]
[364361392,1749081041414,-440.0,0.00018264,2]
[364361394,1749081041423,-440.0,0.00018264,2]
[364361396,1749081041432,-440.0,0.00018265,2]
[364361399,1749081041441,-408.15956243,0.00018265,2]
[364361402,1749081041451,-530.0,0.00018265,2]
[364361405,1749081041460,-440.0,0.00018265,2]
[364361408,1749081041470,-440.0,0.00018265,2]
[364361411,1749081041479,-525.00232136,0.00018265,2]
[364361413,1749081041489,-440.0,0.00018265,2]
[364361416,1749081041498,-440.0,0.00018265,2]
[364361419,1749081041507,-440.0,0.00018265,2]
[364361421,1749081041517,-440.0,0.00018265,2]
[364361424,1749081041526,-440.0,0.00018265,2]
[364361427,1749081041536,-440.0,0.00018265,2]
[364361430,1749081041545,-440.0,0.00018265,2]
[364361433,1749081041554,-390.0,0.00018265,2]
[364361436,1749081041564,-440.0,0.00018265,2]
[364361439,1749081041573,-440.0,0.00018265,2]
[364361442,1749081041583,-440.0,0.00018265,2]
[364361445,1749081041592,-440.0,0.00018265,2]
[364361448,1749081041601,-345.87177744,0.00018265,2]
[364361451,1749081041611,-380.0,0.00018265,2]
[364361454,1749081041620,-380.0,0.00018265,2]
[364361457,1749081041629,-380.0,0.00018265,2]
[364361460,1749081041638,-380.0,0.00018265,2]
[364361463,1749081041648,-390.0,0.00018265,2]
[364361485,1749081041746,-440.0,0.00018265,2]
[364361488,1749081041756,-440.0,0.00018265,2]
[364361492,1749081041767,-1925.46405743,0.00018302,2]
[364361494,1749081041776,-151.0,0.00018325,2]
[364361497,1749081041785,-151.0,0.00018325,2]
[364361500,1749081041794,-151.0,0.00018325,2]
[364361502,1749081041803,-151.0,0.00018325,2]
[364361504,1749081041813,-151.0,0.00018325,2]
[364361506,1749081041822,-151.5283339,0.00018325,2]
[364361508,1749081041831,-500.0,0.00018325,2]
[364361510,1749081041841,-151.0,0.00018325,2]
[364361512,1749081041850,-151.0,0.00018325,2]
[364361514,1749081041860,-500.0,0.00018352,2]
[364361516,1749081041869,-151.0,0.00018352,2]
[364361518,1749081041879,-500.0,0.00018367,2]
[364361520,1749081041888,-502.55203898,0.0001837,2]
[364361522,1749081041898,-500.0,0.0001837,2]
[364361524,1749081041907,-500.0,0.0001837,2]
[364361526,1749081041916,-500.0,0.0001838,2]
[364361528,1749081041926,-500.0,0.00018394,2]
[364361530,1749081041935,-503.09515564,0.00018407,2]
[364361532,1749081041944,-500.0,0.0001847,2]
[364361534,1749081041953,-370.0,0.00018537,2]
[364361536,1749081041962,-370.0,0.00018537,2]
[364361538,1749081041972,-440.0,0.00018537,2]
[364361540,1749081041982,-440.0,0.00018537,2]
[364361542,1749081041991,-440.0,0.00018537,2]
[364361544,1749081042000,-440.0,0.00018537,2]
[364361546,1749081042009,-440.0,0.00018537,2]
[364361548,1749081042019,-440.0,0.00018537,2]
[364361550,1749081042028,-458.2,0.00018537,2]
[364361552,1749081042037,-701.71,0.00018537,2]
[364361554,1749081042046,-440.0,0.00018537,2]
[364361556,1749081042055,-440.0,0.00018537,2]
[364361558,1749081042065,-440.0,0.00018537,2]
[364361560,1749081042074,-440.0,0.00018537,2]
[364361562,1749081042083,-1464.11,0.00018537,2]
[364361564,1749081042093,-2560.82,0.00018537,2]
[364361565,1749081042103,-2762.2,0.00018537,2]
[364361568,1749081042113,-440.0,0.00018537,2]
[364361570,1749081042124,-704.83,0.00018537,2]
[364361572,1749081042133,-440.0,0.00018537,2]
[364361574,1749081042142,-1529.84,0.00018537,2]
[364361576,1749081042152,-440.0,0.00018537,2]
[364361578,1749081042163,-370.0,0.00018537,2]
[364361580,1749081042172,-440.0,0.00018537,2]
[364361582,1749081042181,-373.62550337,0.00018537,2]
[364361584,1749081042191,-440.0,0.00018537,2]
[364361586,1749081042200,-440.0,0.00018537,2]
[364361587,1749081042211,-440.0,0.00018537,2]
[364361590,1749081042220,-440.0,0.00018537,2]
[364361591,1749081042230,-440.0,0.00018537,2]
[364361594,1749081042239,-440.0,0.00018537,2]
[364361596,1749081042249,-440.0,0.00018537,2]
[364361598,1749081042259,-1553.6,0.00018537,2]
[364361600,1749081042269,-440.0,0.00018537,2]
[364361602,1749081042278,-385.0265787,0.00018537,2]
[364361604,1749081042287,-440.0,0.00018537,2]
[364361606,1749081042297,-575.03,0.00018537,2]
[364361608,1749081042306,-440.0,0.00018537,2]
[364361610,1749081042319,-440.0,0.00018537,2]
[364361612,1749081042328,-440.0,0.00018537,2]
[364361614,1749081042339,-2614.29,0.00018537,2]
[364361616,1749081042349,-440.0,0.00018538,2]
[364361618,1749081042362,-440.0,0.00018538,2]
[364361620,1749081042371,-440.0,0.00018538,2]
[364361622,1749081042381,-579.14,0.00018538,2]
[364361624,1749081042391,-701.71,0.00018538,2]
[364361625,1749081042400,-640.15,0.00018538,2]
[364361627,1749081042410,-4472.77,0.00018538,2]
[364361630,1749081042420,-918.13,0.00018538,2]
[364361632,1749081042429,-440.0,0.00018538,2]
[364361634,1749081042439,-440.0,0.00018538,2]
[364361635,1749081042448,-1332.82,0.00018538,2]
[364361637,1749081042458,-570.78,0.00018538,2]
[364361639,1749081042468,-440.0,0.00018538,2]
[364361642,1749081042478,-440.0,0.00018538,2]
[364361643,1749081042487,-440.0,0.00018538,2]
[364361645,1749081042497,-1210.67,0.00018538,2]
[364361647,1749081042506,-440.0,0.00018538,2]
[364361649,1749081042517,-440.0,0.00018538,2]
[364361652,1749081042527,-2806.4,0.00018539,2]
[364361654,1749081042536,-2806.4,0.00018539,2]
[364361656,1749081042545,-2806.4,0.00018539,2]
[364361657,1749081042555,-2806.4,0.00018539,2]
[364361660,1749081042564,-2806.4,0.00018539,2]
[364361661,1749081042574,-2806.4,0.00018539,2]
[364361663,1749081042584,-2806.4,0.00018539,2]
[364361665,1749081042593,-2806.4,0.00018539,2]
[364361668,1749081042603,-440.0,0.00018539,2]
[364361669,1749081042612,-440.0,0.00018539,2]
[364361671,1749081042622,-440.0,0.00018539,2]
[364361674,1749081042632,-440.0,0.00018539,2]
[364361676,1749081042641,-440.0,0.00018539,2]
[364361678,1749081042650,-440.0,0.00018539,2]
[364361679,1749081042661,-440.0,0.00018539,2]
[364361681,1749081042670,-440.0,0.00018539,2]
[364361683,1749081042680,-440.0,0.00018539,2]
[364361685,1749081042689,-480.0,0.00018539,2]
[364361688,1749081042698,-440.0,0.00018539,2]
[364361690,1749081042707,-440.0,0.00018539,2]
[364361692,1749081042717,-440.0,0.00018539,2]
[364361693,1749081042726,-440.0,0.00018539,2]
[364361695,1749081042735,-440.0,0.00018539,2]
[364361698,1749081042746,-223.35908659,0.00018557,2]
[364361700,1749081042755,-500.83744052,0.00018557,2]
[364361702,1749081042764,-500.0,0.00018597,2]
[364361704,1749081042773,-503.5838266,0.00018597,2]
[364361706,1749081042783,-330.0,0.00018746,2]
[364361708,1749081042792,-360.0,0.00018811,2]
[364361710,1749081042802,-360.0,0.00018811,2]
[364361712,1749081042811,-440.0,0.00018811,2]
[364361714,1749081042820,-440.0,0.00018811,2]
[364361716,1749081042829,-440.0,0.00018811,2]
[364361718,1749081042838,-440.0,0.00018811,2]
[364361720,1749081042847,-458.2,0.00018811,2]
[364361721,1749081042856,-701.71,0.00018811,2]
[364361724,1749081042865,-440.0,0.00018811,2]
[364361725,1749081042875,-440.0,0.00018811,2]
[364361728,1749081042885,-440.0,0.00018811,2]
[364361730,1749081042895,-440.0,0.00018811,2]
[364361732,1749081042904,-1464.11,0.00018811,2]
[364361734,1749081042914,-2560.82,0.00018811,2]
[364361735,1749081042923,-2762.2,0.00018811,2]
[364361737,1749081042933,-440.0,0.00018811,2]
[364361740,1749081042943,-704.83,0.00018811,2]
[364361742,1749081042953,-440.0,0.00018811,2]
[364361744,1749081042963,-1529.84,0.00018811,2]
[364361745,1749081042972,-440.0,0.00018811,2]
[364361748,1749081042982,-440.0,0.00018811,2]
[364361749,1749081042991,-440.0,0.00018811,2]
[364361752,1749081043001,-440.0,0.00018811,2]
[364361754,1749081043010,-440.0,0.00018811,2]
[364361755,1749081043019,-440.0,0.00018811,2]
[364361757,1749081043029,-440.0,0.00018811,2]
[364361759,1749081043039,-440.0,0.00018811,2]
[364361761,1749081043048,-440.0,0.00018811,2]
[364361764,1749081043057,-1553.6,0.00018811,2]
[364361766,1749081043067,-440.0,0.00018811,2]
[364361768,1749081043076,-440.0,0.00018811,2]
[364361769,1749081043086,-575.03,0.00018811,2]
[364361771,1749081043095,-440.0,0.00018811,2]
[364361773,1749081043104,-440.0,0.00018811,2]
[364361775,1749081043113,-440.0,0.00018811,2]
[364361777,1749081043123,-2614.29,0.00018811,2]
[364361779,1749081043132,-440.0,0.00018812,2]
[364361781,1749081043141,-440.0,0.00018812,2]
[364361783,1749081043152,-849.78,0.00018812,2]
[364361785,1749081043163,-440.0,0.00018812,2]
[364361787,1749081043172,-579.14,0.00018812,2]
[364361789,1749081043182,-420.0,0.00018812,2]
[364361791,1749081043191,-4117.45,0.00018812,2]
[364361793,1749081043201,-640.15,0.00018812,2]
[364361795,1749081043210,-4472.77,0.00018812,2]
[364361797,1749081043219,-849.4,0.00018812,2]
[364361799,1749081043229,-440.0,0.00018812,2]
[364361801,1749081043239,-918.13,0.00018812,2]
[364361803,1749081043249,-440.0,0.00018812,2]
[364361805,1749081043258,-440.0,0.00018812,2]
[364361807,1749081043268,-1332.82,0.00018812,2]
[364361809,1749081043277,-570.78,0.00018812,2]
[364361811,1749081043287,-440.0,0.00018812,2]
[364361813,1749081043295,-440.0,0.00018812,2]
[364361815,1749081043305,-440.0,0.00018812,2]
[364361817,1749081043318,-1210.67,0.00018812,2]
[364361819,1749081043327,-440.0,0.00018812,2]
[364361821,1749081043337,-440.0,0.00018812,2]
[364361823,1749081043346,-440.0,0.00018813,2]
[364361825,1749081043355,-440.0,0.00018813,2]
[364361827,1749081043366,-440.0,0.00018813,2]
[364361829,1749081043375,-440.0,0.00018813,2]
[364361831,1749081043384,-440.0,0.00018813,2]
[364361833,1749081043394,-440.0,0.00018813,2]
[364361836,1749081043403,-440.0,0.00018813,2]
[364361839,1749081043414,-370.0,0.00018813,2]
[364361842,1749081043423,-440.0,0.00018813,2]
[364361845,1749081043432,-440.0,0.00018813,2]
[364361847,1749081043442,-440.0,0.00018813,2]
[364361849,1749081043451,-370.0,0.00018813,2]
[364361851,1749081043460,-440.0,0.00018813,2]
[364361853,1749081043470,-440.0,0.00018813,2]
[364361855,1749081043479,-1342.08623898,0.000189,2]
[364361857,1749081043489,-1000.0,0.00018915,2]
[364361859,1749081043498,-518.21125641,0.00019085,2]
[364361861,1749081043507,-440.0,0.00019085,2]
[364361863,1749081043516,-440.0,0.00019085,2]
[364361864,1749081043526,-350.0,0.00019085,2]
[364361866,1749081043535,-458.2,0.00019085,2]
[364361868,1749081043544,-320.0,0.00019085,2]
[364361870,1749081043553,-440.0,0.00019085,2]
[364361872,1749081043562,-440.0,0.00019085,2]
[364361883,1749081043644,-440.0,0.00019085,2]
[364361885,1749081043665,-1464.11,0.00019085,2]
[364361887,1749081043674,-2560.82,0.00019085,2]
[364361888,1749081043683,-2762.2,0.00019085,2]
[364361889,1749081043693,-440.0,0.00019085,2]
[364361890,1749081043702,-704.83,0.00019085,2]
[364361891,1749081043711,-440.0,0.00019085,2]
[364361892,1749081043721,-1529.84,0.00019085,2]
[364361893,1749081043730,-440.0,0.00019085,2]
[364361894,1749081043740,-440.0,0.00019085,2]
[364361895,1749081043749,-440.0,0.00019085,2]
[364361896,1749081043759,-440.0,0.00019085,2]
[364361897,1749081043768,-440.0,0.00019085,2]
[364361898,1749081043781,-440.0,0.00019085,2]
[364361899,1749081043791,-440.0,0.00019085,2]
[364361900,1749081043800,-440.0,0.00019085,2]
[364361901,1749081043809,-440.0,0.00019085,2]
[364361902,1749081043819,-1553.6,0.00019085,2]
[364361903,1749081043828,-440.0,0.00019085,2]
[364361904,1749081043838,-440.0,0.00019085,2]
[364361905,1749081043847,-575.03,0.00019085,2]
[364361906,1749081043856,-440.0,0.00019085,2]
[364361907,1749081043866,-440.0,0.00019085,2]
[364361908,1749081043876,-440.0,0.00019085,2]
[364361909,1749081043885,-2614.29,0.00019085,2]
[364361911,1749081043895,-321.92203999,0.00019086,2]
[364361913,1749081043904,-440.0,0.00019086,2]
[364361916,1749081043914,-849.78,0.00019086,2]
[364361919,1749081043923,-440.0,0.00019086,2]
[364361922,1749081043933,-579.14,0.00019086,2]
[364361924,1749081043942,-4117.45,0.00019086,2]
[364361926,1749081043952,-640.15,0.00019086,2]
[364361928,1749081043962,-4472.77,0.00019086,2]
[364361930,1749081043971,-849.4,0.00019086,2]
[364361932,1749081043980,-440.0,0.00019086,2]
[364361934,1749081043989,-918.13,0.00019086,2]
[364361936,1749081043998,-440.0,0.00019086,2]
[364361938,1749081044007,-440.0,0.00019086,2]
[364361940,1749081044017,-1332.82,0.00019086,2]
[364361942,1749081044026,-570.78,0.00019086,2]
[364361944,1749081044035,-440.0,0.00019086,2]
[364361946,1749081044045,-440.0,0.00019086,2]
[364361948,1749081044054,-440.0,0.00019086,2]
[364361949,1749081044064,-1210.67,0.00019086,2]
[364361951,1749081044073,-440.0,0.00019086,2]
[364361953,1749081044083,-440.0,0.00019086,2]
[364361955,1749081044093,-440.0,0.00019087,2]
[364361958,1749081044103,-440.0,0.00019087,2]
[364361960,1749081044113,-440.0,0.00019087,2]
[364361962,1749081044122,-440.0,0.00019087,2]
[364361963,1749081044132,-440.0,0.00019087,2]
[364361965,1749081044141,-440.0,0.00019087,2]
[364361967,1749081044150,-440.0,0.00019087,2]
[364361969,1749081044161,-440.0,0.00019087,2]
[364361971,1749081044170,-539.0,0.00019087,2]
[364361973,1749081044179,-440.0,0.00019087,2]
[364361975,1749081044189,-440.0,0.00019087,2]
[364361977,1749081044198,-360.0,0.00019087,2]
[364361979,1749081044207,-1342.08623891,0.00019107,2]
[364361981,1749081044216,-503.73758269,0.00019145,2]
[364361983,1749081044226,-181.522119,0.00019235,2]
[364361985,1749081044236,-1925.46405743,0.00019261,2]
[364361987,1749081044245,-1342.08623891,0.00019314,2]
[364361989,1749081044254,-30191.14888411,0.00019329,2]
[364361991,1749081044264,-385.01081239,0.00019358,2]
[364361993,1749081044274,-292.83291929,0.00019358,2]
[364361994,1749081044283,-475.0,0.00019358,2]
[364361996,1749081044293,-440.0,0.00019359,2]
[364361998,1749081044302,-440.0,0.00019359,2]
[364362000,1749081044312,-458.2,0.00019359,2]
[364362002,1749081044326,-701.71,0.00019359,2]
[364362003,1749081044336,-440.0,0.00019359,2]
[364362005,1749081044346,-440.0,0.00019359,2]
[364362007,1749081044355,-440.0,0.00019359,2]
[364362009,1749081044367,-1464.11,0.00019359,2]
[364362011,1749081044376,-2560.82,0.00019359,2]
[364362013,1749081044386,-2762.2,0.00019359,2]
[364362015,1749081044397,-440.0,0.00019359,2]
[364362017,1749081044408,-704.83,0.00019359,2]
[364362019,1749081044417,-440.0,0.00019359,2]
[364362021,1749081044427,-1529.84,0.00019359,2]
[364362023,1749081044437,-440.0,0.00019359,2]
[364362025,1749081044446,-440.0,0.00019359,2]
[364362027,1749081044455,-440.0,0.00019359,2]
[364362029,1749081044465,-440.0,0.00019359,2]
[364362030,1749081044474,-350.0,0.00019359,2]
[364362032,1749081044484,-440.0,0.00019359,2]
[364362034,1749081044494,-440.0,0.00019359,2]
[364362036,1749081044503,-440.0,0.00019359,2]
[364362038,1749081044513,-440.0,0.00019359,2]
[364362040,1749081044522,-1553.6,0.00019359,2]
[364362042,1749081044531,-440.0,0.00019359,2]
[364362044,1749081044541,-440.0,0.00019359,2]
[364362046,1749081044550,-575.03,0.00019359,2]
[364362048,1749081044559,-440.0,0.00019359,2]
[364362050,1749081044568,-440.0,0.00019359,2]
[364362052,1749081044578,-350.0,0.00019359,2]
[364362054,1749081044587,-2614.29,0.00019359,2]
[364362055,1749081044596,-440.0,0.0001936,2]
[364362057,1749081044605,-849.78,0.0001936,2]
[364362059,1749081044614,-330.0,0.0001936,2]
[364362061,1749081044623,-579.14,0.0001936,2]
[364362063,1749081044632,-4117.45,0.0001936,2]
[364362065,1749081044642,-640.15,0.0001936,2]
[364362067,1749081044652,-4472.77,0.0001936,2]
[364362069,1749081044661,-849.4,0.0001936,2]
[364362071,1749081044670,-440.0,0.0001936,2]
[364362073,1749081044679,-918.13,0.0001936,2]
[364362075,1749081044689,-440.0,0.0001936,2]
[364362077,1749081044698,-440.0,0.0001936,2]
[364362078,1749081044707,-1332.82,0.0001936,2]
[364362080,1749081044716,-570.78,0.0001936,2]
[364362082,1749081044726,-440.0,0.0001936,2]
[364362084,1749081044735,-440.0,0.0001936,2]
[364362086,1749081044744,-440.0,0.0001936,2]
[364362088,1749081044753,-1210.67,0.0001936,2]
[364362090,1749081044762,-440.0,0.0001936,2]
[364362092,1749081044771,-440.0,0.0001936,2]
[364362094,1749081044780,-440.0,0.00019361,2]
[364362096,1749081044790,-440.0,0.00019361,2]
[364362097,1749081044799,-440.0,0.00019361,2]
[364362099,1749081044808,-440.0,0.00019361,2]
[364362101,1749081044817,-440.0,0.00019361,2]
[364362103,1749081044826,-440.0,0.00019361,2]
[364362105,1749081044835,-440.0,0.00019361,2]
[364362107,1749081044844,-440.0,0.00019361,2]
[364362109,1749081044854,-440.0,0.00019361,2]
[364362111,1749081044863,-493.08,0.00019361,2]
[364362113,1749081044872,-1500.0,0.00019463,2]
[364362115,1749081044882,-151.0,0.000195,2]
[364362117,1749081044891,-1342.08623891,0.00019521,2]
[364362119,1749081044900,-440.0,0.00019633,2]
[364362121,1749081044910,-440.0,0.00019633,2]
[364362122,1749081044919,-458.2,0.00019633,2]
[364362124,1749081044929,-440.0,0.00019633,2]
[364362126,1749081044939,-330.0,0.00019633,2]
[364362128,1749081044948,-440.0,0.00019633,2]
[364362130,1749081044957,-1464.11,0.00019633,2]
[364362132,1749081044966,-2560.82,0.00019633,2]
[364362134,1749081044975,-2762.2,0.00019633,2]
[364362136,1749081044985,-440.0,0.00019633,2]
[364362138,1749081044994,-704.83,0.00019633,2]
[364362140,1749081045003,-330.0,0.00019633,2]
[364362142,1749081045011,-1529.84,0.00019633,2]
[364362144,1749081045020,-440.0,0.00019633,2]
[364362145,1749081045030,-440.0,0.00019633,2]
[364362147,1749081045039,-440.0,0.00019633,2]
[364362149,1749081045049,-440.0,0.00019633,2]
[364362151,1749081045059,-440.0,0.00019633,2]
[364362154,1749081045069,-440.0,0.00019633,2]
[364362156,1749081045079,-330.0,0.00019633,2]
[364362157,1749081045088,-440.0,0.00019633,2]
[364362159,1749081045098,-1553.6,0.00019633,2]
[364362161,1749081045108,-330.0,0.00019633,2]
[364362163,1749081045118,-440.0,0.00019633,2]
[364362165,1749081045128,-575.03,0.00019633,2]
[364362167,1749081045137,-290.0,0.00019633,2]